[Event "Early-Titled-Tuesday-Blitz-April-02-2024"]
[Site "Chess.com"]
[Date "2024.04.02"]
[Round "7"]
[White "shimastream"]
[Black "temus_galaktionov"]
[Result "1-0"]
[WhiteElo "3006"]
[BlackElo "2847"]
[TimeControl "180+1"]
[EndTime "9:17:19 PDT"]
[Termination "shimastream won by resignation"]

1. b3 {[%clk 0:02:57.3]} 1... c6 {[%clk 0:03:00.9]} 2. Bb2 {[%clk 0:02:56.2]}
2... Nf6 {[%clk 0:02:57.4]} 3. Nf3 {[%clk 0:02:49.7]} 3... d6 {[%clk 0:02:51.4]}
4. d4 {[%clk 0:02:41.1]} 4... g6 {[%clk 0:02:51.3]} 5. g3 {[%clk 0:02:40.8]}
5... Bg7 {[%clk 0:02:51.3]} 6. Bg2 {[%clk 0:02:41.5]} 6... O-O {[%clk
0:02:51.5]} 7. O-O {[%clk 0:02:42.3]} 7... Nbd7 {[%clk 0:02:51.2]} 8. Nbd2
{[%clk 0:02:42.1]} 8... a5 {[%clk 0:02:45.7]} 9. a4 {[%clk 0:02:41.6]} 9... Qc7
{[%clk 0:02:42.4]} 10. e4 {[%clk 0:02:33.8]} 10... Rd8 {[%clk 0:02:39.2]} 11.
Qe2 {[%clk 0:02:26.9]} 11... b6 {[%clk 0:02:33]} 12. e5 {[%clk 0:02:22.1]} 12...
dxe5 {[%clk 0:02:22.4]} 13. dxe5 {[%clk 0:02:23]} 13... Ng4 {[%clk 0:02:14.9]}
14. Nc4 {[%clk 0:01:56.9]} 14... Nc5 {[%clk 0:01:17.2]} 15. h3 {[%clk
0:01:42.4]} 15... Nh6 {[%clk 0:01:16.2]} 16. Nd4 {[%clk 0:01:43.1]} 16... Bb7
{[%clk 0:01:14.9]} 17. g4 {[%clk 0:01:34.8]} 17... Rac8 {[%clk 0:00:56.5]} 18.
Rad1 {[%clk 0:01:32]} 18... Re8 {[%clk 0:00:44.3]} 19. f4 {[%clk 0:01:28.4]}
19... f6 {[%clk 0:00:41.8]} 20. e6 {[%clk 0:01:25.5]} 20... Kh8 {[%clk
0:00:33.8]} 21. f5 {[%clk 0:01:22.9]} 21... gxf5 {[%clk 0:00:24.2]} 22. gxf5
{[%clk 0:01:22.4]} 22... Rg8 {[%clk 0:00:21.8]} 23. Bc1 {[%clk 0:01:21]} 23...
Qg3 {[%clk 0:00:13.7]} 24. Rf3 {[%clk 0:01:16.2]} 24... Qh4 {[%clk 0:00:13.2]}
25. Rf4 {[%clk 0:01:12.2]} 25... Qg3 {[%clk 0:00:12.6]} 26. Qf2 {[%clk
0:00:57.2]} 26... Qxf2+ {[%clk 0:00:12.5]} 27. Kxf2 {[%clk 0:00:58.1]} 27... b5
{[%clk 0:00:12.3]} 28. Nxa5 {[%clk 0:00:55.9]} 28... bxa4 {[%clk 0:00:11]} 29.
b4 {[%clk 0:00:54.4]} 29... Ra8 {[%clk 0:00:07.5]} 30. Nxb7 {[%clk 0:00:47.7]}
30... Nxb7 {[%clk 0:00:08.4]} 31. Bxc6 {[%clk 0:00:47.8]} 31... Rab8 {[%clk
0:00:09]} 32. c4 {[%clk 0:00:44.8]} 32... Nd6 {[%clk 0:00:07.8]} 33. c5 {[%clk
0:00:44.9]} 33... Ndxf5 {[%clk 0:00:05.3]} 34. Nxf5 {[%clk 0:00:44]} 34... Nxf5
{[%clk 0:00:06.2]} 35. Rxf5 {[%clk 0:00:43.8]} 35... Rxb4 {[%clk 0:00:06.8]} 36.
Rf4 {[%clk 0:00:42.2]} 36... Rb3 {[%clk 0:00:03.8]} 37. Rf3 {[%clk 0:00:33.7]}
37... Rb4 {[%clk 0:00:03.6]} 38. Bd7 {[%clk 0:00:31.7]} 38... f5 {[%clk
0:00:03.7]} 39. c6 {[%clk 0:00:31]} 39... Bd4+ {[%clk 0:00:03.2]} 40. Rxd4
{[%clk 0:00:31.3]} 40... Rxd4 {[%clk 0:00:04.1]} 41. Bb2 {[%clk 0:00:31.5]} 1-0

[Event "Early-Titled-Tuesday-Blitz-April-02-2024"]
[Site "Chess.com"]
[Date "2024.04.02"]
[Round "7"]
[White "Ginger_GM"]
[Black "bascheyaro"]
[Result "0-1"]
[WhiteElo "2628"]
[BlackElo "2808"]
[TimeControl "180+1"]
[EndTime "9:17:20 PDT"]
[Termination "bascheyaro won on time"]

1. e4 {[%clk 0:03:00.9]} 1... e6 {[%clk 0:02:47]} 2. Nf3 {[%clk 0:02:59.6]} 2...
d5 {[%clk 0:02:47.4]} 3. e5 {[%clk 0:02:59.9]} 3... c5 {[%clk 0:02:47.7]} 4. b4
{[%clk 0:03:00]} 4... d4 {[%clk 0:02:47.9]} 5. b5 {[%clk 0:02:44.5]} 5... b6
{[%clk 0:02:42.7]} 6. Na3 {[%clk 0:02:42.1]} 6... Ne7 {[%clk 0:02:40.5]} 7. Nc4
{[%clk 0:02:41]} 7... Nd5 {[%clk 0:02:40.9]} 8. a4 {[%clk 0:02:36.7]} 8... a6
{[%clk 0:02:37]} 9. Rb1 {[%clk 0:02:33.4]} 9... axb5 {[%clk 0:02:36.2]} 10. axb5
{[%clk 0:02:33.7]} 10... Bb7 {[%clk 0:02:34.2]} 11. g3 {[%clk 0:01:58.8]} 11...
Nd7 {[%clk 0:02:27.6]} 12. Bg2 {[%clk 0:01:53.1]} 12... Ra4 {[%clk 0:02:27.6]}
13. Qe2 {[%clk 0:01:46.5]} 13... Qa8 {[%clk 0:02:26.6]} 14. O-O {[%clk
0:01:42.4]} 14... Be7 {[%clk 0:02:25.6]} 15. Bb2 {[%clk 0:01:32.9]} 15... O-O
{[%clk 0:02:18.4]} 16. h4 {[%clk 0:01:27.1]} 16... Nc7 {[%clk 0:01:45.2]} 17.
Ne1 {[%clk 0:00:49]} 17... Bxg2 {[%clk 0:01:44]} 18. Nxg2 {[%clk 0:00:48.8]}
18... Qd5 {[%clk 0:01:35.8]} 19. d3 {[%clk 0:00:46.4]} 19... Nxb5 {[%clk
0:01:35.6]} 20. Nf4 {[%clk 0:00:46.4]} 20... Qc6 {[%clk 0:01:34.7]} 21. Qg4
{[%clk 0:00:38.8]} 21... Rfa8 {[%clk 0:01:29.4]} 22. h5 {[%clk 0:00:37.4]} 22...
Nc7 {[%clk 0:01:14.9]} 23. Rfe1 {[%clk 0:00:32.4]} 23... h6 {[%clk 0:01:13.5]}
24. Nd2 {[%clk 0:00:24]} 24... Ra2 {[%clk 0:01:03.7]} 25. Nf3 {[%clk 0:00:18]}
25... Nd5 {[%clk 0:01:01]} 26. Bc1 {[%clk 0:00:13.8]} 26... Kh7 {[%clk
0:00:44.4]} 27. Ng6 {[%clk 0:00:10.2]} 27... Rxc2 {[%clk 0:00:34.2]} 28. Re4
{[%clk 0:00:09.8]} 28... Raa2 {[%clk 0:00:31]} 29. Nxe7 {[%clk 0:00:09.2]} 29...
Nxe7 {[%clk 0:00:30.9]} 30. Rf4 {[%clk 0:00:09.9]} 30... Nf5 {[%clk 0:00:20]}
31. Rxf5 {[%clk 0:00:09.9]} 31... exf5 {[%clk 0:00:20.5]} 32. Qxf5+ {[%clk
0:00:10.4]} 32... Kg8 {[%clk 0:00:21.1]} 33. g4 {[%clk 0:00:03]} 33... Rxf2
{[%clk 0:00:20.8]} 0-1

[Event "Early-Titled-Tuesday-Blitz-April-02-2024"]
[Site "Chess.com"]
[Date "2024.04.02"]
[Round "7"]
[White "joselito22"]
[Black "Mazarini41"]
[Result "1-0"]
[WhiteElo "2248"]
[BlackElo "2438"]
[TimeControl "180+1"]
[EndTime "9:17:21 PDT"]
[Termination "joselito22 won by checkmate"]

1. d4 {[%clk 0:02:58.6]} 1... Nf6 {[%clk 0:02:53]} 2. Nf3 {[%clk 0:02:56.9]}
2... c5 {[%clk 0:02:51]} 3. e3 {[%clk 0:02:53]} 3... Nc6 {[%clk 0:02:46.5]} 4.
c3 {[%clk 0:02:49.1]} 4... cxd4 {[%clk 0:02:45.7]} 5. exd4 {[%clk 0:02:48.1]}
5... g6 {[%clk 0:02:46.6]} 6. Bd3 {[%clk 0:02:46.1]} 6... Bg7 {[%clk 0:02:45.8]}
7. Bg5 {[%clk 0:02:42.2]} 7... O-O {[%clk 0:02:45.5]} 8. Qd2 {[%clk 0:02:41.1]}
8... d5 {[%clk 0:02:41.8]} 9. O-O {[%clk 0:02:35.6]} 9... Bg4 {[%clk 0:02:40.7]}
10. Ne5 {[%clk 0:02:34.1]} 10... Nxe5 {[%clk 0:02:38]} 11. dxe5 {[%clk
0:02:34.1]} 11... Nd7 {[%clk 0:02:35.9]} 12. f4 {[%clk 0:02:33.7]} 12... h6
{[%clk 0:02:31.7]} 13. Bh4 {[%clk 0:02:32.4]} 13... Qb6+ {[%clk 0:02:23.1]} 14.
Kh1 {[%clk 0:02:22.1]} 14... e6 {[%clk 0:02:20.4]} 15. h3 {[%clk 0:02:14.2]}
15... Bf5 {[%clk 0:02:19.7]} 16. Bxf5 {[%clk 0:02:13.4]} 16... gxf5 {[%clk
0:02:18.6]} 17. g4 {[%clk 0:01:50.1]} 17... fxg4 {[%clk 0:02:12.6]} 18. hxg4
{[%clk 0:01:50.1]} 18... Nc5 {[%clk 0:02:10.2]} 19. Qh2 {[%clk 0:01:34.7]} 19...
Qc6 {[%clk 0:02:06.3]} 20. Nd2 {[%clk 0:01:27.8]} 20... d4+ {[%clk 0:02:03.8]}
21. Nf3 {[%clk 0:01:27.6]} 21... dxc3 {[%clk 0:02:01.2]} 22. bxc3 {[%clk
0:01:26.9]} 22... Nd3 {[%clk 0:01:59.6]} 23. Bf6 {[%clk 0:01:00.7]} 23... Qe4
{[%clk 0:01:40.1]} 24. Rad1 {[%clk 0:00:45.5]} 24... Rac8 {[%clk 0:00:40.5]} 25.
f5 {[%clk 0:00:42.5]} 25... exf5 {[%clk 0:00:32.2]} 26. gxf5 {[%clk 0:00:39.7]}
26... Rxc3 {[%clk 0:00:32]} 27. Rg1 {[%clk 0:00:35.8]} 27... Qxf3+ {[%clk
0:00:30]} 28. Rg2 {[%clk 0:00:35.8]} 28... Rc2 {[%clk 0:00:26.7]} 29. Rxd3
{[%clk 0:00:27.8]} 29... Rc1+ {[%clk 0:00:20.9]} 30. Qg1 {[%clk 0:00:27.5]}
30... Rxg1+ {[%clk 0:00:20.8]} 31. Kxg1 {[%clk 0:00:27.4]} 31... Qxd3 {[%clk
0:00:20.6]} 32. Rxg7+ {[%clk 0:00:26.8]} 32... Kh8 {[%clk 0:00:20.4]} 33. Rg3+
{[%clk 0:00:18.2]} 33... Kh7 {[%clk 0:00:19.8]} 34. Rxd3 {[%clk 0:00:17.9]}
34... Rc8 {[%clk 0:00:19.8]} 35. Rd7 {[%clk 0:00:16.6]} 35... Kg8 {[%clk
0:00:18.5]} 36. Rxb7 {[%clk 0:00:16.2]} 36... Rc2 {[%clk 0:00:17.9]} 37. Rb8+
{[%clk 0:00:13.2]} 37... Kh7 {[%clk 0:00:17.1]} 38. Rh8# {[%clk 0:00:13.7]} 1-0

[Event "Early-Titled-Tuesday-Blitz-April-02-2024"]
[Site "Chess.com"]
[Date "2024.04.02"]
[Round "7"]
[White "LeoWin2012"]
[Black "Refrigerator1955"]
[Result "0-1"]
[WhiteElo "2316"]
[BlackElo "2001"]
[TimeControl "180+1"]
[EndTime "9:17:22 PDT"]
[Termination "Refrigerator1955 won by checkmate"]

1. e4 {[%clk 0:03:00.9]} 1... c6 {[%clk 0:02:59.6]} 2. d4 {[%clk 0:03:00.5]}
2... d5 {[%clk 0:02:59.4]} 3. e5 {[%clk 0:03:00.4]} 3... c5 {[%clk 0:02:58]} 4.
c3 {[%clk 0:03:00.1]} 4... Nc6 {[%clk 0:02:57.6]} 5. Nf3 {[%clk 0:02:59.6]} 5...
Bg4 {[%clk 0:02:57.1]} 6. Be2 {[%clk 0:02:59]} 6... e6 {[%clk 0:02:56.7]} 7. h3
{[%clk 0:02:58.4]} 7... Bxf3 {[%clk 0:02:56.2]} 8. Bxf3 {[%clk 0:02:58.4]} 8...
Rc8 {[%clk 0:02:55.8]} 9. Be3 {[%clk 0:02:57.2]} 9... Qb6 {[%clk 0:02:54.6]} 10.
Qd2 {[%clk 0:02:51.8]} 10... cxd4 {[%clk 0:02:49.3]} 11. cxd4 {[%clk 0:02:51]}
11... Bb4 {[%clk 0:02:48.1]} 12. Nc3 {[%clk 0:02:50.9]} 12... Na5 {[%clk
0:02:43.6]} 13. Be2 {[%clk 0:02:50.3]} 13... Nc4 {[%clk 0:02:42.2]} 14. Bxc4
{[%clk 0:02:50.2]} 14... Rxc4 {[%clk 0:02:41.7]} 15. O-O {[%clk 0:02:50.2]}
15... Ne7 {[%clk 0:02:39.7]} 16. a3 {[%clk 0:02:50.1]} 16... Bxc3 {[%clk
0:02:38.9]} 17. bxc3 {[%clk 0:02:50.3]} 17... O-O {[%clk 0:02:36.1]} 18. Rfb1
{[%clk 0:02:50.1]} 18... Qc7 {[%clk 0:02:34.2]} 19. Rb3 {[%clk 0:02:49]} 19...
Nc6 {[%clk 0:02:31.2]} 20. a4 {[%clk 0:02:37]} 20... Rc8 {[%clk 0:02:25.6]} 21.
Rc1 {[%clk 0:02:30.8]} 21... Rxa4 {[%clk 0:02:22.2]} 22. h4 {[%clk 0:02:29.5]}
22... Na5 {[%clk 0:02:07.1]} 23. Rb5 {[%clk 0:02:28.9]} 23... Nc4 {[%clk
0:02:05.7]} 24. Qe2 {[%clk 0:02:28.4]} 24... a6 {[%clk 0:01:43.5]} 25. Rc5
{[%clk 0:02:27.7]} 25... Qd7 {[%clk 0:01:43.2]} 26. Rxc8+ {[%clk 0:02:27.8]}
26... Qxc8 {[%clk 0:01:42.5]} 27. h5 {[%clk 0:02:27.4]} 27... h6 {[%clk
0:01:41]} 28. Re1 {[%clk 0:02:16.4]} 28... Nxe3 {[%clk 0:01:29.2]} 29. Qxe3
{[%clk 0:02:16]} 29... Rc4 {[%clk 0:01:28.5]} 30. Rc1 {[%clk 0:02:11.9]} 30...
b5 {[%clk 0:01:28]} 31. Ra1 {[%clk 0:02:09.8]} 31... Rxc3 {[%clk 0:01:22.9]} 32.
Qd2 {[%clk 0:02:05.5]} 32... Rc4 {[%clk 0:01:20.9]} 33. Ra5 {[%clk 0:02:01.1]}
33... Qb7 {[%clk 0:01:17.8]} 34. Qa2 {[%clk 0:01:58.7]} 34... Rc6 {[%clk
0:01:12.8]} 35. Ra3 {[%clk 0:01:56.7]} 35... b4 {[%clk 0:01:10.1]} 36. Rg3
{[%clk 0:01:56.7]} 36... Rc3 {[%clk 0:01:02]} 37. Rg4 {[%clk 0:01:53.8]} 37...
Qb6 {[%clk 0:00:51.2]} 38. Qd2 {[%clk 0:01:53.4]} 38... Kh7 {[%clk 0:00:48.2]}
39. Qf4 {[%clk 0:01:53.5]} 39... Rc7 {[%clk 0:00:42.3]} 40. Qg3 {[%clk
0:01:46.2]} 40... f5 {[%clk 0:00:22]} 41. exf6 {[%clk 0:01:47.1]} 41... gxf6
{[%clk 0:00:21.3]} 42. Rg8 {[%clk 0:01:41.5]} 42... Rc1+ {[%clk 0:00:20.8]} 43.
Kh2 {[%clk 0:01:41.1]} 43... Qc7 {[%clk 0:00:20.7]} 44. f4 {[%clk 0:01:33.4]}
44... Qf7 {[%clk 0:00:20.2]} 45. Rg6 {[%clk 0:01:24.3]} 45... a5 {[%clk
0:00:19.4]} 46. f5 {[%clk 0:01:23.6]} 46... exf5 {[%clk 0:00:13.5]} 47. Qf4
{[%clk 0:01:23.6]} 47... Qc7 {[%clk 0:00:08.8]} 48. Rxh6+ {[%clk 0:01:18.3]}
48... Kg7 {[%clk 0:00:07.4]} 49. Rg6+ {[%clk 0:01:17.9]} 49... Kf7 {[%clk
0:00:07.3]} 50. Qxc7+ {[%clk 0:01:14.2]} 50... Rxc7 {[%clk 0:00:06.6]} 51. Rg3
{[%clk 0:01:15.1]} 51... Rb7 {[%clk 0:00:05.4]} 52. h6 {[%clk 0:01:15.1]} 52...
Ke6 {[%clk 0:00:04.8]} 53. Rg7 {[%clk 0:01:14.5]} 53... Rxg7 {[%clk 0:00:03.7]}
54. hxg7 {[%clk 0:01:14.3]} 54... Kf7 {[%clk 0:00:04.1]} 55. Kg3 {[%clk
0:01:14.8]} 55... b3 {[%clk 0:00:03.6]} 56. Kf4 {[%clk 0:01:15.7]} 56... b2
{[%clk 0:00:03.7]} 57. g8=Q+ {[%clk 0:01:16.6]} 57... Kxg8 {[%clk 0:00:03.6]}
58. Kxf5 {[%clk 0:01:17.5]} 58... Kf7 {[%clk 0:00:03.9]} 59. g4 {[%clk
0:01:17.1]} 59... b1=Q+ {[%clk 0:00:03.5]} 60. Kf4 {[%clk 0:01:18]} 60... Qd3
{[%clk 0:00:03.3]} 61. g5 {[%clk 0:01:18]} 61... Qxd4+ {[%clk 0:00:03.7]} 62.
Kg3 {[%clk 0:01:18.4]} 62... fxg5 {[%clk 0:00:04]} 63. Kf3 {[%clk 0:01:18.9]}
63... Qf4+ {[%clk 0:00:04.3]} 64. Kg2 {[%clk 0:01:19.4]} 64... g4 {[%clk
0:00:04.8]} 65. Kg1 {[%clk 0:01:20.3]} 65... Qf3 {[%clk 0:00:05]} 66. Kh2 {[%clk
0:01:20.6]} 66... g3+ {[%clk 0:00:05.1]} 67. Kg1 {[%clk 0:01:21.1]} 67... Qf2+
{[%clk 0:00:05]} 68. Kh1 {[%clk 0:01:22]} 68... Qh2# {[%clk 0:00:05.3]} 0-1

[Event "Early-Titled-Tuesday-Blitz-April-02-2024"]
[Site "Chess.com"]
[Date "2024.04.02"]
[Round "7"]
[White "enriquebutti"]
[Black "Heliosis11"]
[Result "0-1"]
[WhiteElo "2202"]
[BlackElo "2379"]
[TimeControl "180+1"]
[EndTime "9:17:23 PDT"]
[Termination "Heliosis11 won by resignation"]

1. d4 {[%clk 0:02:59.1]} 1... Nf6 {[%clk 0:02:57.1]} 2. c4 {[%clk 0:02:57.9]}
2... e6 {[%clk 0:02:57.1]} 3. Nf3 {[%clk 0:02:56.3]} 3... b6 {[%clk 0:02:55.9]}
4. e3 {[%clk 0:02:54.4]} 4... Bb7 {[%clk 0:02:54.8]} 5. Bd3 {[%clk 0:02:53.8]}
5... d5 {[%clk 0:02:54.8]} 6. O-O {[%clk 0:02:48.8]} 6... Bd6 {[%clk 0:02:54.9]}
7. b3 {[%clk 0:02:44.4]} 7... O-O {[%clk 0:02:54.7]} 8. Bb2 {[%clk 0:02:44.6]}
8... Nbd7 {[%clk 0:02:54.4]} 9. Nc3 {[%clk 0:02:43.9]} 9... c6 {[%clk
0:02:54.9]} 10. e4 {[%clk 0:02:42.2]} 10... dxe4 {[%clk 0:02:54.1]} 11. Nxe4
{[%clk 0:02:41.7]} 11... Nxe4 {[%clk 0:02:54.1]} 12. Bxe4 {[%clk 0:02:41.4]}
12... Nf6 {[%clk 0:02:55]} 13. Bc2 {[%clk 0:02:40.8]} 13... Qc7 {[%clk
0:02:54.9]} 14. Qd3 {[%clk 0:02:39.8]} 14... Rfe8 {[%clk 0:02:46]} 15. Rfe1
{[%clk 0:02:38.8]} 15... Rad8 {[%clk 0:02:29.5]} 16. Qe2 {[%clk 0:02:19.6]}
16... Nd7 {[%clk 0:01:55]} 17. Rad1 {[%clk 0:01:58]} 17... Nf8 {[%clk
0:01:52.9]} 18. Qe3 {[%clk 0:01:42.3]} 18... Ng6 {[%clk 0:01:48.7]} 19. c5
{[%clk 0:01:38.9]} 19... Bf4 {[%clk 0:01:46.5]} 20. Qc3 {[%clk 0:01:37.4]} 20...
Bh6 {[%clk 0:01:31.9]} 21. g3 {[%clk 0:01:32.2]} 21... Ne7 {[%clk 0:01:22.3]}
22. Ne5 {[%clk 0:01:30.2]} 22... Nd5 {[%clk 0:01:19.5]} 23. Qd3 {[%clk
0:01:22.7]} 23... g6 {[%clk 0:01:19.3]} 24. Qf3 {[%clk 0:01:21.5]} 24... Bg7
{[%clk 0:01:09.7]} 25. h4 {[%clk 0:01:11.6]} 25... bxc5 {[%clk 0:00:50.1]} 26.
dxc5 {[%clk 0:01:08.6]} 26... Rf8 {[%clk 0:00:32.5]} 27. a3 {[%clk 0:01:00.1]}
27... Qe7 {[%clk 0:00:30.7]} 28. b4 {[%clk 0:00:56.5]} 28... a5 {[%clk
0:00:30.7]} 29. Bc3 {[%clk 0:00:53.5]} 29... axb4 {[%clk 0:00:27.5]} 30. axb4
{[%clk 0:00:52.8]} 30... f6 {[%clk 0:00:20.5]} 31. Nc4 {[%clk 0:00:46]} 31... e5
{[%clk 0:00:19.4]} 32. Bb3 {[%clk 0:00:40.5]} 32... Kh8 {[%clk 0:00:18.9]} 33.
Nd6 {[%clk 0:00:34.1]} 33... Ba8 {[%clk 0:00:17.6]} 34. b5 {[%clk 0:00:29]}
34... Nxc3 {[%clk 0:00:16.6]} 35. Qxc3 {[%clk 0:00:25]} 35... cxb5 {[%clk
0:00:10.6]} 36. Nxb5 {[%clk 0:00:24.2]} 36... Qb7 {[%clk 0:00:08.2]} 0-1

[Event "Early-Titled-Tuesday-Blitz-April-02-2024"]
[Site "Chess.com"]
[Date "2024.04.02"]
[Round "7"]
[White "PonyQueen07"]
[Black "GrotBchess"]
[Result "0-1"]
[WhiteElo "2232"]
[BlackElo "2441"]
[TimeControl "180+1"]
[EndTime "9:17:24 PDT"]
[Termination "GrotBchess won by checkmate"]

1. c4 {[%clk 0:03:00.9]} 1... e6 {[%clk 0:02:59.2]} 2. e4 {[%clk 0:03:00.6]}
2... c5 {[%clk 0:02:56.4]} 3. Nc3 {[%clk 0:03:00.3]} 3... Nc6 {[%clk 0:02:56.9]}
4. g3 {[%clk 0:02:56]} 4... g6 {[%clk 0:02:55.7]} 5. Bg2 {[%clk 0:02:56.3]} 5...
Bg7 {[%clk 0:02:56.3]} 6. Nge2 {[%clk 0:02:56]} 6... Nge7 {[%clk 0:02:56.7]} 7.
O-O {[%clk 0:02:56]} 7... d6 {[%clk 0:02:57.1]} 8. d3 {[%clk 0:02:55.9]} 8... a6
{[%clk 0:02:56.3]} 9. Be3 {[%clk 0:02:55.4]} 9... Nd4 {[%clk 0:02:56.7]} 10. Qd2
{[%clk 0:02:53.3]} 10... h5 {[%clk 0:02:54]} 11. h4 {[%clk 0:02:47.9]} 11...
Nec6 {[%clk 0:02:53.6]} 12. Rad1 {[%clk 0:02:38.3]} 12... Rb8 {[%clk 0:02:51.1]}
13. a4 {[%clk 0:02:24.6]} 13... Qa5 {[%clk 0:02:39.2]} 14. f4 {[%clk 0:01:57.7]}
14... Bd7 {[%clk 0:02:32.8]} 15. Qe1 {[%clk 0:01:24.5]} 15... O-O {[%clk
0:02:23.7]} 16. Kh2 {[%clk 0:01:14.8]} 16... b5 {[%clk 0:02:20]} 17. axb5 {[%clk
0:01:13.2]} 17... axb5 {[%clk 0:02:17.1]} 18. cxb5 {[%clk 0:01:11.7]} 18... Nxb5
{[%clk 0:02:15.1]} 19. f5 {[%clk 0:01:05.5]} 19... exf5 {[%clk 0:02:04.5]} 20.
exf5 {[%clk 0:01:05.6]} 20... Ne5 {[%clk 0:02:04.4]} 21. f6 {[%clk 0:01:02.6]}
21... Ng4+ {[%clk 0:02:00.7]} 22. Kh1 {[%clk 0:00:55.9]} 22... Nxf6 {[%clk
0:01:49.3]} 23. Rxf6 {[%clk 0:00:35.3]} 23... Bxf6 {[%clk 0:01:46.7]} 24. Nd5
{[%clk 0:00:34.2]} 24... Qxe1+ {[%clk 0:01:40]} 25. Rxe1 {[%clk 0:00:32.6]}
25... Bxb2 {[%clk 0:01:25.7]} 26. Bh6 {[%clk 0:00:28.9]} 26... Bg7 {[%clk
0:01:17.9]} 27. Bxg7 {[%clk 0:00:22.8]} 27... Kxg7 {[%clk 0:01:18.8]} 28. Nef4
{[%clk 0:00:22]} 28... Rfe8 {[%clk 0:01:17.5]} 29. Rf1 {[%clk 0:00:19.7]} 29...
Nd4 {[%clk 0:01:16.2]} 30. Nc7 {[%clk 0:00:14.5]} 30... Re3 {[%clk 0:01:12.7]}
31. Bd5 {[%clk 0:00:10.3]} 31... Rf8 {[%clk 0:01:02.9]} 32. Kh2 {[%clk
0:00:06.8]} 32... Ne6 {[%clk 0:00:55.9]} 33. Bxe6 {[%clk 0:00:04.3]} 33... fxe6
{[%clk 0:00:53.6]} 34. Ng2 {[%clk 0:00:03]} 34... Rxf1 {[%clk 0:00:51.3]} 35.
Nxe3 {[%clk 0:00:03.1]} 35... Rf2+ {[%clk 0:00:51.5]} 36. Kg1 {[%clk 0:00:02.8]}
36... Rd2 {[%clk 0:00:50.9]} 37. Ng2 {[%clk 0:00:02.2]} 37... Rxd3 {[%clk
0:00:49.7]} 38. Nf4 {[%clk 0:00:02.6]} 38... Rxg3+ {[%clk 0:00:48.6]} 39. Kf2
{[%clk 0:00:03]} 39... Rg4 {[%clk 0:00:48.3]} 40. Nfxe6+ {[%clk 0:00:02.4]}
40... Bxe6 {[%clk 0:00:48]} 41. Nxe6+ {[%clk 0:00:03.3]} 41... Kf6 {[%clk
0:00:48.2]} 42. Ng5 {[%clk 0:00:02.2]} 42... Rxh4 {[%clk 0:00:46.9]} 43. Nf3
{[%clk 0:00:02.6]} 43... Rf4 {[%clk 0:00:46.9]} 44. Kg3 {[%clk 0:00:02.7]} 44...
Rxf3+ {[%clk 0:00:47.2]} 45. Kxf3 {[%clk 0:00:03.6]} 45... c4 {[%clk 0:00:46.7]}
46. Ke4 {[%clk 0:00:04.5]} 46... d5+ {[%clk 0:00:45.6]} 47. Kxd5 {[%clk
0:00:04.9]} 47... c3 {[%clk 0:00:45.3]} 48. Kc4 {[%clk 0:00:05.8]} 48... c2
{[%clk 0:00:46]} 49. Kb3 {[%clk 0:00:06.5]} 49... c1=Q {[%clk 0:00:46.8]} 50.
Ka2 {[%clk 0:00:06.7]} 50... h4 {[%clk 0:00:46.5]} 51. Kb3 {[%clk 0:00:07.6]}
51... h3 {[%clk 0:00:47.2]} 52. Ka4 {[%clk 0:00:08.2]} 52... h2 {[%clk
0:00:48.1]} 53. Kb3 {[%clk 0:00:09.1]} 53... h1=Q {[%clk 0:00:48.1]} 54. Ka2
{[%clk 0:00:10]} 54... Qa8+ {[%clk 0:00:47.2]} 55. Kb3 {[%clk 0:00:10.9]} 55...
Qb7+ {[%clk 0:00:46.1]} 56. Ka4 {[%clk 0:00:11.8]} 56... Qa1# {[%clk 0:00:45.6]}
0-1

[Event "Early-Titled-Tuesday-Blitz-April-02-2024"]
[Site "Chess.com"]
[Date "2024.04.02"]
[Round "7"]
[White "ChristianArca"]
[Black "ural58"]
[Result "1-0"]
[WhiteElo "2658"]
[BlackElo "2466"]
[TimeControl "180+1"]
[EndTime "9:17:25 PDT"]
[Termination "ChristianArca won by resignation"]

1. d4 {[%clk 0:02:56]} 1... e6 {[%clk 0:02:55.4]} 2. e4 {[%clk 0:02:53.1]} 2...
d5 {[%clk 0:02:54.7]} 3. Nd2 {[%clk 0:02:53.6]} 3... dxe4 {[%clk 0:02:54.8]} 4.
Nxe4 {[%clk 0:02:54.5]} 4... Bd7 {[%clk 0:02:54.9]} 5. Nf3 {[%clk 0:02:49.5]}
5... Bc6 {[%clk 0:02:54.8]} 6. Bd3 {[%clk 0:02:49]} 6... Nd7 {[%clk 0:02:55]} 7.
c3 {[%clk 0:02:40.8]} 7... Ngf6 {[%clk 0:02:54.9]} 8. Ng3 {[%clk 0:02:40.6]}
8... Bd6 {[%clk 0:02:53.8]} 9. Qe2 {[%clk 0:02:28.1]} 9... Qe7 {[%clk 0:02:53]}
10. O-O {[%clk 0:02:28]} 10... h6 {[%clk 0:02:51.4]} 11. Re1 {[%clk 0:02:28.4]}
11... O-O-O {[%clk 0:02:38.6]} 12. Nf5 {[%clk 0:02:24.9]} 12... exf5 {[%clk
0:02:38]} 13. Qxe7 {[%clk 0:02:25.8]} 13... Bxe7 {[%clk 0:02:37.7]} 14. Rxe7
{[%clk 0:02:21.6]} 14... Bxf3 {[%clk 0:02:33.6]} 15. gxf3 {[%clk 0:02:18.6]}
15... Rde8 {[%clk 0:02:29.1]} 16. Rxf7 {[%clk 0:02:12.8]} 16... Re1+ {[%clk
0:02:28.5]} 17. Kg2 {[%clk 0:02:11.5]} 17... g6 {[%clk 0:02:27.4]} 18. Rb1
{[%clk 0:02:10.6]} 18... Nd5 {[%clk 0:02:17.9]} 19. Bd2 {[%clk 0:02:08.8]} 19...
Rxb1 {[%clk 0:02:07.6]} 20. Bxb1 {[%clk 0:02:09.7]} 20... c6 {[%clk 0:02:03.9]}
21. Rg7 {[%clk 0:02:08.6]} 21... Kc7 {[%clk 0:01:54]} 22. c4 {[%clk 0:02:04.8]}
22... Nf6 {[%clk 0:01:50.3]} 23. Bf4+ {[%clk 0:02:03.2]} 23... Kb6 {[%clk
0:01:50]} 24. Rxg6 {[%clk 0:02:02.7]} 24... Nh5 {[%clk 0:01:41.7]} 25. Bd6
{[%clk 0:01:58.9]} 25... Nf8 {[%clk 0:01:37.7]} 26. Bc5+ {[%clk 0:01:52.7]}
26... Ka6 {[%clk 0:01:37.4]} 27. Bxf8 {[%clk 0:01:52.4]} 27... Nf4+ {[%clk
0:01:36.8]} 28. Kf1 {[%clk 0:01:50.4]} 28... Nxg6 {[%clk 0:01:37.7]} 29. Bb4
{[%clk 0:01:48.7]} 29... Nh4 {[%clk 0:01:33.6]} 30. d5 {[%clk 0:01:29.1]} 30...
cxd5 {[%clk 0:01:31.6]} 31. cxd5 {[%clk 0:01:30]} 31... Nxf3 {[%clk 0:01:30.7]}
32. Bxf5 {[%clk 0:01:29]} 32... Rd8 {[%clk 0:01:25.4]} 33. Be4 {[%clk
0:01:24.2]} 33... Nxh2+ {[%clk 0:01:23.7]} 34. Kg2 {[%clk 0:01:23.5]} 34... Ng4
{[%clk 0:01:24.3]} 35. Be7 {[%clk 0:01:24.3]} 35... Rg8 {[%clk 0:01:23.1]} 36.
Kf1 {[%clk 0:01:21.6]} 36... Ne5 {[%clk 0:01:15.1]} 37. d6 {[%clk 0:01:21.5]}
37... Kb6 {[%clk 0:01:13.5]} 38. f4 {[%clk 0:01:19.9]} 38... Nd7 {[%clk
0:01:11.3]} 39. Bf5 {[%clk 0:01:18.4]} 39... Kc6 {[%clk 0:01:10.2]} 40. Be4+
{[%clk 0:01:16.8]} 40... Kb6 {[%clk 0:01:09.7]} 41. f5 {[%clk 0:01:17.3]} 41...
Rg4 {[%clk 0:01:05.8]} 42. Bd3 {[%clk 0:01:13.2]} 42... Kc6 {[%clk 0:01:04.8]}
43. Kf2 {[%clk 0:01:11.8]} 43... Rd4 {[%clk 0:01:03.9]} 44. Ke3 {[%clk
0:01:11.2]} 44... Rxd6 {[%clk 0:00:59.8]} 45. Be4+ {[%clk 0:01:08]} 45... Rd5
{[%clk 0:00:56.8]} 46. f6 {[%clk 0:01:07]} 46... Ne5 {[%clk 0:00:56.3]} 47. Kf4
{[%clk 0:01:01.6]} 47... Nf7 {[%clk 0:00:56.4]} 48. a4 {[%clk 0:00:56.6]} 48...
a5 {[%clk 0:00:56]} 49. b3 {[%clk 0:00:52.2]} 49... h5 {[%clk 0:00:54.5]} 50.
Bg2 {[%clk 0:00:49.9]} 50... h4 {[%clk 0:00:48.3]} 51. Kg4 {[%clk 0:00:50.1]}
51... Ng5 {[%clk 0:00:30.6]} 52. Kxh4 {[%clk 0:00:43.4]} 52... Ne6 {[%clk
0:00:29.9]} 53. f7 {[%clk 0:00:41.1]} 1-0